[Event "Asian Amateur Rapid Women 2024"]
[Site "Al Ain"]
[Date "2024.12.15"]
[Round "5.10"]
[White "Daneshpour, Aram"]
[Black "Prakash, Sadhana"]
[Result "0-1"]
[ECO "C44"]
[WhiteElo "1563"]
[BlackElo "1408"]
[Annotator "NA RC"]
[PlyCount "126"]
[EventDate "2024.12.15"]
[EventType "swiss"]
[EventCountry "UAE"]
[SourceTitle "playchess.com"]
[Source "ChessBase"]
[SourceQuality "1"]
[TimeControl "900+10"]

1. e4 {[%emt 0:00:02]} e5 {[%emt 0:00:01]} 2. Nf3 {[%emt 0:00:02]} Nc6 {[%emt 0:00:02]} 3. d4 {[%emt 0:00:07]} exd4 {[%emt 0:00:02]} 4. Bc4 {[%emt 0:00:02]} Bc5 {[%emt 0:00:21]} 5. Ng5 {[%emt 0:00:07]} Nh6 {[%emt 0:00:02]} 6. Bxf7+ {[%emt 0:00:08]} Nxf7 {[%emt 0:00:05]} 7. Nxf7 {[%emt 0:00:01]} Kxf7 {[%emt 0:00:03]} 8. Qh5+ {[%emt 0:00:02]} g6 {[%emt 0:00:11]} 9. Qxc5 {[%emt 0:00:05]} d6 {[%emt 0:00:13]} 10. Qc4+ {[%emt 0:00:20]} Be6 {[%emt 0:00:03]} 11. Qe2 {[%emt 0:00:49]} Rf8 {[%emt 0:00:05]} 12. Bh6 {[%emt 0:00:19]} Re8 {[%emt 0:00:11]} 13. O-O {[%emt 0:00:58]} Kg8 {[%emt 0:00:06]} 14. Nd2 {[%emt 0:00:46]} Qh4 {[%emt 0:00:37]} 15. Be3 {[%emt 0:01:22]} dxe3 {[%emt 0:00:05]} 16. Qxe3 {[%emt 0:00:08]} Ne5 {[%emt 0:00:19]} 17. h3 {[%emt 0:01:47]} Rf8 {[%emt 0:01:04]} 18. f4 {[%emt 0:00:54]} Nc4 {[%emt 0:00:35]} 19. Nxc4 {[%emt 0:00:58]} Bxc4 {[%emt 0:00:04]} 20. Rf3 {[%emt 0:00:01]} Qf6 {[%emt 0:00:28]} 21. c3 {[%emt 0:02:21]} a5 {[%emt 0:00:29]} 22. f5 {[%emt 0:00:36]} Kh8 {[%emt 0:02:20]} 23. fxg6 {[%emt 0:00:22]} Qxg6 {[%emt 0:00:06]} 24. Rxf8+ {[%emt 0:00:27]} Rxf8 {[%emt 0:00:09]} 25. Qd4+ {[%emt 0:00:10]} Qf6 {[%emt 0:00:15]} 26. Qxc4 {[%emt 0:00:19]} Qf2+ {[%emt 0:00:06]} 27. Kh1 {[%emt 0:00:32]} Qxb2 {[%emt 0:00:48]} 28. Rf1 {[%emt 0:05:09]} Rxf1+ {[%emt 0:00:07]} 29. Qxf1 {[%emt 0:00:02]} Qxa2 {[%emt 0:00:09]} 30. Qf8+ {[%emt 0:00:16]} Qg8 {[%emt 0:00:03]} 31. Qf6+ {[%emt 0:00:04]} Qg7 {[%emt 0:00:02]} 32. Qd8+ {[%emt 0:00:03]} Qg8 {[%emt 0:00:02]} 33. Qxc7 {[%emt 0:00:23]} Qa8 {[%emt 0:03:33]} 34. Qxd6 {[%emt 0:00:22]} a4 {[%emt 0:00:10]} 35. Qf6+ {[%emt 0:00:24]} Kg8 {[%emt 0:00:04]} 36. Qg5+ {[%emt 0:00:11]} Kh8 {[%emt 0:00:03]} 37. Qf6+ {[%emt 0:00:17]} Kg8 {[%emt 0:00:04]} 38. Qe6+ {[%emt 0:00:23]} Kh8 {[%emt 0:00:05]} 39. Qe5+ {[%emt 0:00:01]} Kg8 {[%emt 0:00:01]} 40. Qd5+ {[%emt 0:00:04]} Kh8 {[%emt 0:00:03]} 41. e5 {[%emt 0:00:05]} a3 {[%emt 0:00:07]} 42. Qa2 {[%emt 0:00:19]} Kg7 {[%emt 0:01:16]} 43. e6 {[%emt 0:00:14]} Kf6 {[%emt 0:00:17]} 44. Kg1 {[%emt 0:00:13]} Qa7+ {[%emt 0:00:03]} 45. Kf1 {[%emt 0:00:05]} Qa6+ {[%emt 0:00:01]} 46. Ke1 {[%emt 0:00:06]} Qxe6+ {[%emt 0:00:02]} 47. Qxe6+ {[%emt 0:00:05]} Kxe6 {[%emt 0:00:01]} 48. g4 {[%emt 0:00:09]} a2 {[%emt 0:00:02]} 49. g5 {[%emt 0:00:03]} a1=Q+ {[%emt 0:00:04]} 50. Kd2 {[%emt 0:00:01]} Qb2+ {[%emt 0:00:03]} 51. Kd3 {[%emt 0:00:01]} Qb5+ {[%emt 0:00:03]} 52. Kd2 {[%emt 0:00:02]} Qxg5+ {[%emt 0:08:35]} 53. Kd3 {[%emt 0:00:00]} Qf5+ {[%emt 0:00:00]} 54. Kc4 {[%emt 0:00:00]} Qxh3 {[%emt 0:00:00]} 55. Kb4 {[%emt 0:00:00]} Qd3 {[%emt 0:00:00]} 56. c4 {[%emt 0:00:00]} h5 {[%emt 0:00:00]} 57. c5 {[%emt 0:00:02]} h4 {[%emt 0:00:00]} 58. c6 {[%emt 0:00:01]} bxc6 {[%emt 0:00:00]} 59. Ka4 {[%emt 0:00:03]} h3 {[%emt 0:00:00]} 60. Kb4 {[%emt 0:00:02]} h2 {[%emt 0:00:00]} 61. Kc5 {[%emt 0:00:07]} h1=Q {[%emt 0:00:00]} 62. Kb6 {[%emt 0:00:02]} Qhb1+ {[%emt 0:00:00]} 63. Kc7 {[%emt 0:00:05]} Qd7# {[%emt 0:00:00]} 0-1

[Event "Asian Amateur Rapid Women 2024"]
[Site "Al Ain"]
[Date "2024.12.15"]
[Round "5.11"]
[White "Rani Puja"]
[Black "Bhandari, Pooja"]
[Result "0-1"]
[ECO "C01"]
[WhiteElo "1478"]
[BlackElo "1684"]
[Annotator "NA RC"]
[PlyCount "84"]
[EventDate "2024.12.15"]
[EventType "swiss"]
[EventCountry "UAE"]
[SourceTitle "playchess.com"]
[Source "ChessBase"]
[SourceQuality "1"]
[TimeControl "900+10"]

1. e4 {[%emt 0:00:04]} e6 {[%emt 0:00:02]} 2. d4 {[%emt 0:00:04]} d5 {[%emt 0:00:03]} 3. exd5 {[%emt 0:00:03]} exd5 {[%emt 0:00:02]} 4. Nf3 {[%emt 0:00:01]} Bg4 {[%emt 0:00:14]} 5. h3 {[%emt 0:00:34]} Bh5 {[%emt 0:00:18]} 6. Be2 {[%emt 0:00:34]} Bd6 {[%emt 0:01:02]} 7. c3 {[%emt 0:01:48]} Nf6 {[%emt 0:00:36]} 8. Bg5 {[%emt 0:00:12]} Nbd7 {[%emt 0:00:12]} 9. Nbd2 {[%emt 0:00:53]} c6 {[%emt 0:00:54]} 10. O-O {[%emt 0:01:15]} Qc7 {[%emt 0:00:17]} 11. Bxf6 {[%emt 0:00:47]} Nxf6 {[%emt 0:00:07]} 12. Bd3 {[%emt 0:00:33]} O-O {[%emt 0:00:56]} 13. Re1 {[%emt 0:00:34]} Rfe8 {[%emt 0:00:32]} 14. Qc2 {[%emt 0:00:36]} c5 {[%emt 0:02:29]} 15. dxc5 {[%emt 0:01:10]} Bxc5 {[%emt 0:00:12]} 16. Be2 {[%emt 0:01:43]} Qb6 {[%emt 0:00:26]} 17. Nd4 {[%emt 0:02:20]} Bxd4 {[%emt 0:02:24]} 18. cxd4 {[%emt 0:01:12]} Rxe2 {[%emt 0:00:42]} 19. Rxe2 {[%emt 0:00:57]} Bxe2 {[%emt 0:00:03]} 20. Nb3 {[%emt 0:00:23]} Bc4 {[%emt 0:00:31]} 21. Nc5 {[%emt 0:00:23]} Re8 {[%emt 0:02:13]} 22. b3 {[%emt 0:00:22]} Bb5 {[%emt 0:00:13]} 23. Rc1 {[%emt 0:00:17]} Re2 {[%emt 0:00:55]} 24. Qf5 {[%emt 0:00:32]} g6 {[%emt 0:01:02]} 25. Qf3 {[%emt 0:00:15]} Ne4 {[%emt 0:01:03]} 26. Nd7 {[%emt 0:00:53]} Qa6 {[%emt 0:00:34]} 27. Rc8+ {[%emt 0:00:13]} Kg7 {[%emt 0:00:08]} 28. Ne5 {[%emt 0:00:08]} Qf6 {[%emt 0:00:10]} 29. Qg3 {[%emt 0:00:23]} Qxf2+ {[%emt 0:00:17]} 30. Qxf2 {[%emt 0:00:06]} Rxf2 {[%emt 0:00:03]} 31. a4 {[%emt 0:00:22]} Ba6 {[%emt 0:00:15]} 32. b4 {[%emt 0:00:11]} Rf1+ {[%emt 0:00:37]} 33. Kh2 {[%emt 0:00:03]} Be2 {[%emt 0:00:13]} 34. Rc7 {[%emt 0:00:14]} Nd6 {[%emt 0:00:50]} 35. Rd7 {[%emt 0:00:22]} Nf5 {[%emt 0:00:07]} 36. Rxd5 {[%emt 0:00:09]} Rd1 {[%emt 0:00:08]} 37. Rd7 {[%emt 0:00:06]} Nxd4 {[%emt 0:00:03]} 38. Rxf7+ {[%emt 0:00:14]} Kh6 {[%emt 0:00:07]} 39. Rxb7 {[%emt 0:00:12]} Rb1 {[%emt 0:00:19]} 40. b5 {[%emt 0:00:26]} Ra1 {[%emt 0:00:14]} 41. Rxa7 {[%emt 0:00:02]} Bd1 {[%emt 0:00:03]} 42. Nc4 {[%emt 0:00:20]} Rxa4 {[%emt 0:00:05]} 0-1

[Event "Asian Amateur Rapid Women 2024"]
[Site "Al Ain"]
[Date "2024.12.15"]
[Round "5.12"]
[White "Almaamari, Zainab Darwish"]
[Black "Mariam Khalifa AlQubaisi"]
[Result "1-0"]
[ECO "D05"]
[WhiteElo "1751"]
[BlackElo "1438"]
[Annotator "NA RC"]
[PlyCount "35"]
[EventDate "2024.12.15"]
[EventType "swiss"]
[EventCountry "UAE"]
[SourceTitle "playchess.com"]
[Source "ChessBase"]
[SourceQuality "1"]
[TimeControl "900+10"]

1. Nf3 {[%emt 0:00:02]} d5 {[%emt 0:00:01]} 2. b3 {[%emt 0:00:02]} Nf6 {[%emt 0:00:05]} 3. Bb2 {[%emt 0:00:01]} e6 {[%emt 0:00:01]} 4. d4 {[%emt 0:00:02]} Bd6 {[%emt 0:00:05]} 5. e3 {[%emt 0:15:53]} Ne4 {[%emt 0:00:03]} 6. c4 {[%emt 0:00:00]} c6 {[%emt 0:00:02]} 7. c5 {[%emt 0:00:00]} Bc7 {[%emt 0:00:01]} 8. Bd3 {[%emt 0:00:00]} O-O {[%emt 0:00:22]} 9. O-O {[%emt 0:00:00]} Nd7 {[%emt 0:00:05]} 10. Nbd2 {[%emt 0:00:00]} f5 {[%emt 0:00:01]} 11. h3 {[%emt 0:00:00]} a5 {[%emt 0:00:29]} 12. Nh2 {[%emt 0:00:00]} Qh4 {[%emt 0:00:35]} 13. Ndf3 {[%emt 0:00:00]} Qh6 {[%emt 0:00:47]} 14. Ne5 {[%emt 0:00:00]} Bxe5 {[%emt 0:00:30]} 15. dxe5 {[%emt 0:00:00]} Ndxc5 {[%emt 0:00:04]} 16. Ba3 {[%emt 0:00:00]} Rf7 {[%emt 0:00:48]} 17. Bxc5 {[%emt 0:00:00]} Nxc5 {[%emt 0:00:05]} 18. Be2 {[%emt 0:00:00]} 1-0

[Event "Asian Amateur Rapid Women 2024"]
[Site "Al Ain"]
[Date "2024.12.15"]
[Round "6.1"]
[White "Sabirova, Shakhnoza"]
[Black "Anoud Eisa Mohamed"]
[Result "1-0"]
[ECO "C47"]
[WhiteElo "1903"]
[BlackElo "1884"]
[Annotator "NA RC"]
[PlyCount "69"]
[EventDate "2024.12.15"]
[EventType "swiss"]
[EventCountry "UAE"]
[SourceTitle "playchess.com"]
[Source "ChessBase"]
[SourceQuality "1"]
[TimeControl "900+10"]

1. e4 {[%emt 0:00:10]} e5 {[%emt 0:00:03]} 2. Nf3 {[%emt 0:00:00]} Nc6 {[%emt 0:00:06]} 3. Nc3 {[%emt 0:00:00]} Nf6 {[%emt 0:00:07]} 4. a3 {[%emt 0:00:01]} d5 {[%emt 0:00:43]} 5. exd5 {[%emt 0:00:10]} Nxd5 {[%emt 0:00:07]} 6. Bb5 {[%emt 0:00:03]} Nxc3 {[%emt 0:00:59]} 7. bxc3 {[%emt 0:00:08]} Bd6 {[%emt 0:00:31]} 8. d3 {[%emt 0:01:01]} O-O {[%emt 0:00:46]} 9. h3 {[%emt 0:00:13]} Re8 {[%emt 0:00:21]} 10. O-O {[%emt 0:00:05]} Bd7 {[%emt 0:01:12]} 11. Re1 {[%emt 0:00:18]} h6 {[%emt 0:00:13]} 12. Bc4 {[%emt 0:00:50]} Qf6 {[%emt 0:02:37]} 13. Nd2 {[%emt 0:00:47]} Qg6 {[%emt 0:01:02]} 14. Qf3 {[%emt 0:00:09]} a6 {[%emt 0:00:51]} 15. Ne4 {[%emt 0:00:10]} Be6 {[%emt 0:00:19]} 16. Bxe6 {[%emt 0:00:46]} Rxe6 {[%emt 0:00:16]} 17. Rb1 {[%emt 0:00:12]} b6 {[%emt 0:01:17]} 18. Nxd6 {[%emt 0:01:27]} Rxd6 {[%emt 0:00:33]} 19. Rxe5 {[%emt 0:00:12]} Rad8 {[%emt 0:01:06]} 20. Re4 {[%emt 0:00:18]} Rf6 {[%emt 0:00:32]} 21. Qe2 {[%emt 0:00:57]} Rd7 {[%emt 0:01:55]} 22. Bf4 {[%emt 0:00:57]} Kh7 {[%emt 0:00:14]} 23. Re1 {[%emt 0:00:17]} Qf5 {[%emt 0:00:12]} 24. Bg3 {[%emt 0:09:59]} Qc5 {[%emt 0:00:27]} 25. a4 {[%emt 0:00:00]} Na5 {[%emt 0:00:43]} 26. Re8 {[%emt 0:00:00]} Rg6 {[%emt 0:00:44]} 27. Qe4 {[%emt 0:00:00]} Qxc3 {[%emt 0:01:08]} 28. Qa8 {[%emt 0:00:00]} Rc6 {[%emt 0:00:27]} 29. Rh8+ {[%emt 0:00:00]} Kg6 {[%emt 0:00:01]} 30. Qe8 {[%emt 0:00:00]} Qd4 {[%emt 0:00:20]} 31. Re4 {[%emt 0:00:00]} Qa1+ {[%emt 0:00:15]} 32. Kh2 {[%emt 0:00:00]} Rd5 {[%emt 0:00:02]} 33. Rg4+ {[%emt 0:00:00]} Rg5 {[%emt 0:00:02]} 34. Qe4+ {[%emt 0:00:00]} Kh5 {[%emt 0:00:27]} 35. Rh4# {[%emt 0:00:00]} 1-0

[Event "Asian Amateur Rapid Women 2024"]
[Site "Al Ain"]
[Date "2024.12.15"]
[Round "6.2"]
[White "Antonova, Nadezhda"]
[Black "Joshi, Sindira"]
[Result "1-0"]
[ECO "E17"]
[WhiteElo "1989"]
[BlackElo "1735"]
[Annotator "NA RC"]
[PlyCount "75"]
[EventDate "2024.12.15"]
[EventType "swiss"]
[EventCountry "UAE"]
[SourceTitle "playchess.com"]
[Source "ChessBase"]
[SourceQuality "1"]
[TimeControl "900+10"]

1. Nf3 {[%emt 0:00:01]} Nf6 {[%emt 0:00:03]} 2. b3 {[%emt 0:00:01]} e6 {[%emt 0:00:12]} 3. Bb2 {[%emt 0:00:01]} b6 {[%emt 0:00:22]} 4. g3 {[%emt 0:00:08]} Bb7 {[%emt 0:00:03]} 5. Bg2 {[%emt 0:00:01]} Be7 {[%emt 0:00:38]} 6. O-O {[%emt 0:00:02]} O-O {[%emt 0:00:05]} 7. c4 {[%emt 0:00:14]} d6 {[%emt 0:00:21]} 8. d4 {[%emt 0:00:07]} Nbd7 {[%emt 0:00:23]} 9. Nc3 {[%emt 0:00:08]} Re8 {[%emt 0:00:19]} 10. Re1 {[%emt 0:00:02]} Bf8 {[%emt 0:00:46]} 11. e4 {[%emt 0:00:16]} e5 {[%emt 0:00:08]} 12. d5 {[%emt 0:00:05]} Nc5 {[%emt 0:00:05]} 13. b4 {[%emt 0:00:21]} Ncd7 {[%emt 0:00:16]} 14. Rc1 {[%emt 0:00:48]} a5 {[%emt 0:00:09]} 15. a3 {[%emt 0:00:01]} axb4 {[%emt 0:00:41]} 16. axb4 {[%emt 0:00:01]} Ra7 {[%emt 0:00:13]} 17. Qb3 {[%emt 0:00:21]} Qb8 {[%emt 0:01:03]} 18. Ra1 {[%emt 0:00:16]} Rc8 {[%emt 0:00:18]} 19. Bh3 {[%emt 0:00:27]} Ba8 {[%emt 0:00:40]} 20. g4 {[%emt 0:01:29]} c5 {[%emt 0:00:38]} 21. Rxa7 {[%emt 0:00:12]} Qxa7 {[%emt 0:00:05]} 22. Ra1 {[%emt 0:00:23]} Qc7 {[%emt 0:00:14]} 23. g5 {[%emt 0:01:12]} Nh5 {[%emt 0:00:23]} 24. Nb5 {[%emt 0:00:03]} Qd8 {[%emt 0:11:05]} 25. Ra7 {[%emt 0:00:06]} f5 {[%emt 0:00:00]} 26. Bxf5 {[%emt 0:00:13]} Nf4 {[%emt 0:00:00]} 27. Bxd7 {[%emt 0:00:40]} Rb8 {[%emt 0:00:00]} 28. Kf1 {[%emt 0:00:35]} Rb7 {[%emt 0:00:00]} 29. Bf5 {[%emt 0:01:38]} Rxa7 {[%emt 0:00:00]} 30. Nxa7 {[%emt 0:00:02]} Be7 {[%emt 0:00:00]} 31. Nc6 {[%emt 0:00:55]} Bxc6 {[%emt 0:00:00]} 32. dxc6 {[%emt 0:00:02]} Bxg5 {[%emt 0:00:00]} 33. c7 {[%emt 0:00:16]} Qxc7 {[%emt 0:00:00]} 34. Nxg5 {[%emt 0:00:01]} Qe7 {[%emt 0:00:00]} 35. Bxh7+ {[%emt 0:00:58]} Kh8 {[%emt 0:00:00]} 36. Qg3 {[%emt 0:00:10]} Qf6 {[%emt 0:00:00]} 37. Bf5 {[%emt 0:00:22]} Qh6 {[%emt 0:00:00]} 38. Nf7+ {[%emt 0:00:03]} 1-0

[Event "Asian Amateur Rapid Women 2024"]
[Site "Al Ain"]
[Date "2024.12.15"]
[Round "6.3"]
[White "Ahlam Rashed"]
[Black "Sananda R"]
[Result "1/2-1/2"]
[ECO "D30"]
[WhiteElo "1987"]
[BlackElo "1696"]
[Annotator "NA RC"]
[PlyCount "89"]
[EventDate "2024.12.15"]
[EventType "swiss"]
[EventCountry "UAE"]
[SourceTitle "playchess.com"]
[Source "ChessBase"]
[SourceQuality "1"]
[TimeControl "900+10"]

1. Nf3 {[%emt 0:00:02]} d5 {[%emt 0:00:06]} 2. c4 {[%emt 0:00:02]} e6 {[%emt 0:00:06]} 3. g3 {[%emt 0:00:02]} Nf6 {[%emt 0:00:02]} 4. Bg2 {[%emt 0:00:02]} Be7 {[%emt 0:00:09]} 5. O-O {[%emt 0:00:05]} O-O {[%emt 0:00:02]} 6. b3 {[%emt 0:00:02]} c5 {[%emt 0:00:19]} 7. cxd5 {[%emt 0:00:03]} exd5 {[%emt 0:00:04]} 8. d4 {[%emt 0:00:04]} Be6 {[%emt 0:00:15]} 9. Bb2 {[%emt 0:00:23]} Nc6 {[%emt 0:00:32]} 10. h3 {[%emt 0:01:10]} Rc8 {[%emt 0:00:18]} 11. e3 {[%emt 0:00:08]} cxd4 {[%emt 0:00:07]} 12. Nxd4 {[%emt 0:00:06]} Nxd4 {[%emt 0:00:35]} 13. Qxd4 {[%emt 0:00:34]} Bc5 {[%emt 0:00:18]} 14. Qd2 {[%emt 0:00:37]} Ne4 {[%emt 0:00:31]} 15. Qe2 {[%emt 0:00:02]} Qe7 {[%emt 0:01:55]} 16. Rd1 {[%emt 0:01:07]} Rfd8 {[%emt 0:00:10]} 17. Nd2 {[%emt 0:00:48]} Nxd2 {[%emt 0:00:45]} 18. Rxd2 {[%emt 0:00:04]} Bb4 {[%emt 0:00:02]} 19. Rc2 {[%emt 0:01:17]} Rxc2 {[%emt 0:01:22]} 20. Qxc2 {[%emt 0:00:02]} Qd7 {[%emt 0:00:07]} 21. Qd3 {[%emt 0:02:01]} Bf8 {[%emt 0:01:42]} 22. Kh2 {[%emt 0:00:04]} b6 {[%emt 0:00:39]} 23. Rd1 {[%emt 0:00:12]} Qd6 {[%emt 0:00:57]} 24. Qd4 {[%emt 0:01:25]} Qd7 {[%emt 0:00:58]} 25. h4 {[%emt 0:01:29]} Qd6 {[%emt 0:01:07]} 26. Rc1 {[%emt 0:00:54]} Qd7 {[%emt 0:00:13]} 27. h5 {[%emt 0:00:36]} h6 {[%emt 0:00:13]} 28. Qe5 {[%emt 0:01:04]} f6 {[%emt 0:00:23]} 29. Qc7 {[%emt 0:01:38]} Bd6 {[%emt 0:01:05]} 30. Qc2 {[%emt 0:01:12]} Qf7 {[%emt 0:00:44]} 31. Bf3 {[%emt 0:00:15]} Qd7 {[%emt 0:01:21]} 32. Qd3 {[%emt 0:00:42]} Bc5 {[%emt 0:00:11]} 33. Rd1 {[%emt 0:00:35]} Be7 {[%emt 0:00:45]} 34. a3 {[%emt 0:00:25]} Qe8 {[%emt 0:01:11]} 35. Rc1 {[%emt 0:00:15]} Qd7 {[%emt 0:00:08]} 36. b4 {[%emt 0:00:27]} Bf7 {[%emt 0:00:32]} 37. Bd1 {[%emt 0:00:11]} Kf8 {[%emt 0:00:18]} 38. Qh7 {[%emt 0:00:32]} Bg8 {[%emt 0:00:13]} 39. Qd3 {[%emt 0:00:03]} Bf7 {[%emt 0:00:14]} 40. Qh7 {[%emt 0:00:24]} Bg8 {[%emt 0:00:01]} 41. Qd3 {[%emt 0:00:04]} Bf7 {[%emt 0:00:08]} 42. Bf3 {[%emt 0:00:09]} Be6 {[%emt 0:00:25]} 43. Rd1 {[%emt 0:00:20]} Kg8 {[%emt 0:00:15]} 44. Rc1 {[%emt 0:00:21]} Kf8 {[%emt 0:00:05]} 45. Qh7 {[%emt 0:00:22]} 1/2-1/2

[Event "Asian Amateur Rapid Women 2024"]
[Site "Al Ain"]
[Date "2024.12.15"]
[Round "6.4"]
[White "Ahoud Eisa Mohamed"]
[Black "Wijesuriya, G P Y"]
[Result "0-1"]
[ECO "C54"]
[WhiteElo "1553"]
[BlackElo "1867"]
[Annotator "NA RC"]
[PlyCount "146"]
[EventDate "2024.12.15"]
[EventType "swiss"]
[EventCountry "UAE"]
[SourceTitle "playchess.com"]
[Source "ChessBase"]
[SourceQuality "1"]
[TimeControl "900+10"]

1. e4 {[%emt 0:00:02]} e5 {[%emt 0:00:20]} 2. Nf3 {[%emt 0:00:03]} Nc6 {[%emt 0:00:01]} 3. Bc4 {[%emt 0:00:02]} Bc5 {[%emt 0:00:15]} 4. d3 {[%emt 0:00:03]} h6 {[%emt 0:00:08]} 5. c3 {[%emt 0:00:02]} Nf6 {[%emt 0:00:03]} 6. O-O {[%emt 0:00:03]} O-O {[%emt 0:00:07]} 7. h3 {[%emt 0:00:02]} d6 {[%emt 0:00:09]} 8. Re1 {[%emt 0:00:04]} a6 {[%emt 0:00:10]} 9. Bb3 {[%emt 0:00:02]} Ba7 {[%emt 0:00:03]} 10. Nbd2 {[%emt 0:00:05]} Ne7 {[%emt 0:00:56]} 11. d4 {[%emt 0:00:06]} Ng6 {[%emt 0:00:07]} 12. Nf1 {[%emt 0:00:03]} c5 {[%emt 0:01:05]} 13. dxe5 {[%emt 0:01:39]} dxe5 {[%emt 0:00:14]} 14. Ng3 {[%emt 0:00:16]} b5 {[%emt 0:00:18]} 15. c4 {[%emt 0:00:31]} Bb7 {[%emt 0:00:05]} 16. Qe2 {[%emt 0:00:33]} Nf4 {[%emt 0:00:38]} 17. Qf1 {[%emt 0:02:58]} Re8 {[%emt 0:02:05]} 18. cxb5 {[%emt 0:00:09]} axb5 {[%emt 0:01:05]} 19. Qxb5 {[%emt 0:00:09]} Bb6 {[%emt 0:00:41]} 20. Nxe5 {[%emt 0:02:52]} Nxh3+ {[%emt 0:01:09]} 21. gxh3 {[%emt 0:00:20]} Rxe5 {[%emt 0:00:02]} 22. Bf4 {[%emt 0:00:35]} Re8 {[%emt 0:01:38]} 23. Rad1 {[%emt 0:00:07]} Ba6 {[%emt 0:00:20]} 24. Qc6 {[%emt 0:02:02]} Rc8 {[%emt 0:00:56]} 25. Rxd8 {[%emt 0:01:53]} Rxc6 {[%emt 0:00:02]} 26. Rxe8+ {[%emt 0:00:02]} Nxe8 {[%emt 0:00:01]} 27. Nf5 {[%emt 0:00:53]} Rg6+ {[%emt 0:00:44]} 28. Kh2 {[%emt 0:00:21]} Kf8 {[%emt 0:00:04]} 29. Rg1 {[%emt 0:00:46]} c4 {[%emt 0:00:09]} 30. Ba4 {[%emt 0:00:20]} Bxf2 {[%emt 0:00:58]} 31. Rxg6 {[%emt 0:01:05]} fxg6 {[%emt 0:00:02]} 32. Nd6 {[%emt 0:00:54]} Nxd6 {[%emt 0:00:29]} 33. Bxd6+ {[%emt 0:00:02]} Kf7 {[%emt 0:00:01]} 34. Kg2 {[%emt 0:00:11]} Bd4 {[%emt 0:00:02]} 35. Ba3 {[%emt 0:00:15]} Ke6 {[%emt 0:00:16]} 36. Kf3 {[%emt 0:01:40]} Ke5 {[%emt 0:00:04]} 37. Bc6 {[%emt 0:00:00]} Bc8 {[%emt 0:00:14]} 38. h4 {[%emt 0:00:00]} Be6 {[%emt 0:00:03]} 39. Bf8 {[%emt 0:00:00]} Kf6 {[%emt 0:00:07]} 40. Ba3 {[%emt 0:00:08]} g5 {[%emt 0:00:11]} 41. hxg5+ {[%emt 0:00:13]} Kxg5 {[%emt 0:00:01]} 42. Bd5 {[%emt 0:00:04]} Bg4+ {[%emt 0:00:09]} 43. Kg3 {[%emt 0:00:07]} Be2 {[%emt 0:00:10]} 44. b3 {[%emt 0:00:10]} cxb3 {[%emt 0:03:02]} 45. axb3 {[%emt 0:00:03]} Be5+ {[%emt 0:00:01]} 46. Kf2 {[%emt 0:00:22]} Bb5 {[%emt 0:00:02]} 47. Be7+ {[%emt 0:00:26]} Kf4 {[%emt 0:00:07]} 48. Bh4 {[%emt 0:00:08]} Bd4+ {[%emt 0:00:02]} 49. Kg2 {[%emt 0:00:05]} Kg4 {[%emt 0:01:02]} 50. Bg3 {[%emt 0:00:07]} h5 {[%emt 0:00:04]} 51. Be6+ {[%emt 0:00:05]} Kg5 {[%emt 0:00:07]} 52. Kf3 {[%emt 0:00:18]} Bd3 {[%emt 0:00:39]} 53. Bf5 {[%emt 0:00:17]} Bc2 {[%emt 0:00:07]} 54. Be6 {[%emt 0:00:02]} Bd1+ {[%emt 0:00:02]} 55. Kg2 {[%emt 0:00:11]} h4 {[%emt 0:00:04]} 56. Be1 {[%emt 0:00:02]} Kf6 {[%emt 0:00:22]} 57. Bf5 {[%emt 0:00:14]} g5 {[%emt 0:00:06]} 58. Kh3 {[%emt 0:00:06]} Bxb3 {[%emt 0:00:01]} 59. Bd2 {[%emt 0:00:09]} Bd1 {[%emt 0:00:18]} 60. Bg4 {[%emt 0:00:01]} Bc2 {[%emt 0:00:19]} 61. Bf5 {[%emt 0:00:01]} Bc5 {[%emt 0:00:25]} 62. Bc3+ {[%emt 0:00:00]} Kf7 {[%emt 0:00:00]} 63. Bg4 {[%emt 0:00:00]} Bd3 {[%emt 0:00:00]} 64. Bf5 {[%emt 0:00:00]} Ke7 {[%emt 0:00:00]} 65. Kg4 {[%emt 0:00:00]} Be2+ {[%emt 0:00:00]} 66. Kh3 {[%emt 0:00:00]} Kd6 {[%emt 0:00:00]} 67. Bg4 {[%emt 0:00:00]} Bd3 {[%emt 0:00:00]} 68. Bf5 {[%emt 0:00:00]} Be2 {[%emt 0:00:00]} 69. Bg4 {[%emt 0:00:00]} Bd3 {[%emt 0:00:00]} 70. Bf5 {[%emt 0:00:00]} Bf1+ {[%emt 0:00:22]} 71. Kg4 {[%emt 0:00:00]} Be2+ {[%emt 0:00:02]} 72. Kh3 {[%emt 0:00:00]} Bg4+ {[%emt 0:00:07]} 73. Kg2 {[%emt 0:00:00]} Be3 {[%emt 0:00:00]} 0-1

[Event "Asian Amateur Rapid Women 2024"]
[Site "Al Ain"]
[Date "2024.12.15"]
[Round "6.5"]
[White "Smaraki, Mohanty"]
[Black "Asudani Ruhani Raj"]
[Result "1/2-1/2"]
[ECO "D38"]
[WhiteElo "1745"]
[BlackElo "1613"]
[Annotator "NA RC"]
[PlyCount "100"]
[EventDate "2024.12.15"]
[EventType "swiss"]
[EventCountry "UAE"]
[SourceTitle "playchess.com"]
[Source "ChessBase"]
[SourceQuality "1"]
[TimeControl "900+10"]

1. c4 {[%emt 0:00:09]} e6 {[%emt 0:00:01]} 2. d4 {[%emt 0:00:33]} d5 {[%emt 0:00:03]} 3. Nf3 {[%emt 0:00:07]} Nf6 {[%emt 0:00:01]} 4. Nc3 {[%emt 0:00:07]} Nbd7 {[%emt 0:00:02]} 5. Bg5 {[%emt 0:00:29]} Bb4 {[%emt 0:00:02]} 6. e3 {[%emt 0:02:22]} c5 {[%emt 0:00:08]} 7. cxd5 {[%emt 0:00:37]} exd5 {[%emt 0:00:12]} 8. dxc5 {[%emt 0:01:01]} Qa5 {[%emt 0:00:04]} 9. Bxf6 {[%emt 0:02:23]} Nxf6 {[%emt 0:00:22]} 10. Qd4 {[%emt 0:00:55]} O-O {[%emt 0:01:48]} 11. Bd3 {[%emt 0:02:02]} Bxc5 {[%emt 0:01:10]} 12. Qa4 {[%emt 0:01:06]} Qc7 {[%emt 0:00:30]} 13. O-O {[%emt 0:00:30]} Bg4 {[%emt 0:00:15]} 14. Nxd5 {[%emt 0:00:22]} Nxd5 {[%emt 0:00:43]} 15. Qxg4 {[%emt 0:00:02]} Nf6 {[%emt 0:00:03]} 16. Qf5 {[%emt 0:00:16]} Qb6 {[%emt 0:00:35]} 17. Rac1 {[%emt 0:01:43]} Rac8 {[%emt 0:00:35]} 18. b4 {[%emt 0:00:36]} Qxb4 {[%emt 0:00:29]} 19. Ng5 {[%emt 0:00:08]} Rfd8 {[%emt 0:03:57]} 20. Nxh7 {[%emt 0:00:47]} Qb6 {[%emt 0:01:21]} 21. Nxf6+ {[%emt 0:00:21]} Qxf6 {[%emt 0:00:28]} 22. Qh7+ {[%emt 0:00:46]} Kf8 {[%emt 0:00:06]} 23. Rc4 {[%emt 0:00:10]} g6 {[%emt 0:01:06]} 24. Rf4 {[%emt 0:00:53]} Qg7 {[%emt 0:00:23]} 25. Qxg6 {[%emt 0:00:41]} Rc6 {[%emt 0:01:10]} 26. Qxg7+ {[%emt 0:00:04]} Kxg7 {[%emt 0:00:02]} 27. Be4 {[%emt 0:00:02]} Rb6 {[%emt 0:00:09]} 28. h4 {[%emt 0:00:01]} Rd2 {[%emt 0:00:05]} 29. a4 {[%emt 0:00:01]} Ra2 {[%emt 0:00:08]} 30. Bd5 {[%emt 0:00:04]} Rd2 {[%emt 0:00:08]} 31. Bxf7 {[%emt 0:00:05]} Rbb2 {[%emt 0:00:14]} 32. Be8 {[%emt 0:00:34]} a6 {[%emt 0:01:06]} 33. h5 {[%emt 0:00:15]} b5 {[%emt 0:00:07]} 34. axb5 {[%emt 0:00:04]} axb5 {[%emt 0:00:02]} 35. Rg4+ {[%emt 0:00:04]} Kh7 {[%emt 0:00:07]} 36. Re4 {[%emt 0:00:32]} b4 {[%emt 0:00:13]} 37. Bg6+ {[%emt 0:00:02]} Kg7 {[%emt 0:00:09]} 38. g4 {[%emt 0:00:04]} b3 {[%emt 0:00:08]} 39. g5 {[%emt 0:00:21]} Ra2 {[%emt 0:00:16]} 40. Rc4 {[%emt 0:00:10]} Bxe3 {[%emt 0:00:37]} 41. Rc7+ {[%emt 0:00:05]} Kg8 {[%emt 0:00:06]} 42. Bf7+ {[%emt 0:00:11]} Kh8 {[%emt 0:00:05]} 43. Bxb3 {[%emt 0:00:03]} Bxf2+ {[%emt 0:00:38]} 44. Kh1 {[%emt 0:00:03]} Rab2 {[%emt 0:00:18]} 45. Rc8+ {[%emt 0:00:04]} Kh7 {[%emt 0:00:04]} 46. Rc7+ {[%emt 0:00:21]} Kh8 {[%emt 0:00:06]} 47. Rc8+ {[%emt 0:00:16]} Kh7 {[%emt 0:00:09]} 48. Bg8+ {[%emt 0:00:12]} Kg7 {[%emt 0:00:07]} 49. h6+ {[%emt 0:00:10]} Kg6 {[%emt 0:00:08]} 50. Rc6+ {[%emt 0:00:23]} Kxg5 {[%emt 0:00:05]} 1/2-1/2